Cogmind - Beta 11.1 @@@ ROGUE MODE // 2022.12.17 @ 21:35:50 Player: Milkduds Result: Destroyed by G-34 Mercenary with Small Laser Performance ------------- Evolutions (1) 500 Regions Visited (2) 400 Robots Destroyed (19) 95 Value Destroyed (506) 506 Prototype IDs (0) 0 Alien Tech Used (0) 0 Bonus (0) 0 TOTAL SCORE: 1501 Bonus ------- None Cogmind --------- Core Integrity 0/400 Matter 290/300 Energy 83/100 System Corruption 2% Temperature Cool (6) Movement Core (150) Ox2 Location -9/Materials Parts ------- > --- POWER (1) -------- (None) > --- PROPULSION (4) --- (None) > --- UTILITY (2) ------ Light Armor Plating > --- WEAPON (2) ------- Small Laser Beam Rifle > --- INVENTORY (5) ---- Light Ion Engine Light Ion Engine Compact Battery (200) Improved Datajack Peak State ------------ > --- POWER ------------ Light Nuclear Core > --- PROPULSION ------- Light Treads Light Treads Wheel Wheel > --- UTILITY ---------- Small Storage Unit Hardened Light Armor Plating > --- WEAPON ----------- EM Pulse Gun Light Cannon > --- INVENTORY -------- Light Ion Engine Light Ion Engine Assault Rifle [Rating: 12] Favorites ----------- Power Light Ion Engine Engine Light Ion Engine Power Core Light Nuclear Core Propulsion Light Treads Treads Light Treads Wheel Wheel Utility Small Storage Unit Storage Small Storage Unit Protection Hardened Light Armor Plating Weapon EM Pulse Gun Energy Gun EM Pulse Gun Ballistic Gun Assault Rifle Ballistic Cannon Light Cannon Special Melee Weapon Improved Datajack Build | -11 -10 -9 ------- Run | Scr Mat Mat Slots Evolved 2 | . . 2 Power . | . . . Propulsion 2 | . . 2 Utility . | . . . Weapon . | . . . Parts Attached 22 | 6 2 14 Power 3 | 1 . 2 Engine 1 | 1 . . Core 2 | . . 2 Reactor . | . . . Propulsion 4 | 2 . 2 Treads 2 | 2 . . Leg . | . . . Wheel 2 | . . 2 Hover . | . . . Flight . | . . . Utility 3 | 1 . 2 Device . | . . . Storage 1 | 1 . . Processor . | . . . Hackware . | . . . Protection 2 | . . 2 Artifact . | . . . Weapon 12 | 2 2 8 Energy Gun 9 | 2 1 6 Energy Cannon . | . . . Ballistic Gun 1 | . . 1 Ballistic Cannon 1 | . 1 . Launcher . | . . . Special Weapon . | . . . Impact Weapon . | . . . Slashing Weapon . | . . . Piercing Weapon . | . . . Special Melee Weapon 1 | . . 1 Unidentified Prototypes . | . . . Parts Lost 14 | . 1 13 Power 2 | . . 2 Propulsion 4 | . . 4 Utility 2 | . . 2 Weapon 6 | . 1 5 Highest Loss Streak 8 | . 1 8 To Critical Strikes . | . . . Average Slot Usage (%) 79 | . 84 75 Engine 7 | . 14 1 Core 4 | . . 8 Treads 20 | . 28 14 Wheel 7 | . . 14 Storage 12 | . 14 10 Protection 3 | . . 6 Energy Gun 16 | . 25 9 Ballistic Gun 1 | . . 2 Ballistic Cannon 5 | . 2 8 Naked Turns . | . . . Heaviest Build 20 | 12 13 20 Greatest Support 40 | 40 40 40 Greatest Overweight (x) 3 | . . 3 Average Overweight (x) . | . . . Largest Inventory Capacity 8 | 8 8 8 Average Capacity 7 | 7 8 7 Most Carried 7 | 4 5 7 Average Carried 3 | 2 4 4 Final Capacity 8 | 8 8 5 Final Carried 4 | 3 4 4 Class Distribution -------------------- 100% | Mutant Dominant Class ---------------- Mutant | -10/Materials Mutant | -9/Materials Resources | -11 -10 -9 ----------- Run | Scr Mat Mat Matter Collected 515 | 217 67 231 Remotely . | . . . Salvage Created 554 | . 156 398 Parts 39 | . 9 30 Haulers Intercepted . | . . . Recyclers Shooed . | . . . Parts Field Recycled . | . . . Retrieved Matter . | . . . Parts Self-Destructed . | . . . Prevented . | . . . Kills | -11 -10 -9 ------- Run | Scr Mat Mat Combat Hostiles Destroyed 14 | . 5 9 Guns 8 | . 4 4 Cannons 6 | . 1 5 Classes Destroyed 7 | . 2 5 Worker 2 | . . 2 Builder 1 | . . 1 Watcher 2 | . . 2 Swarmer 3 | . 3 . Grunt 9 | . 2 7 Duelist 1 | . . 1 Sentry 1 | . . 1 Best Kill Streak 9 | . 3 9 Combat Bots Only 4 | . 3 4 Max Kills in Single Turn 1 | . 1 1 Gunslinging . | . . . Exploded . | . . . Melee . | . . . Uniques/NPCs Destroyed . | . . . Combat | -11 -10 -9 -------- Run | Scr Mat Mat Damage Taken 1775 | . 251 1524 Core 461 | . 59 402 Absorbed by Shields . | . . . Core Remaining (%) 88 | 100 76 . Volleys Fired 57 | . 13 44 Largest 2 | . 2 2 Hottest 80 | . 80 80 Shots Fired 93 | . 24 69 Gun 66 | . 23 43 Cannon 27 | . 1 26 Launcher . | . . . Special . | . . . Kinetic 42 | . 1 41 Thermal 26 | . . 26 Explosive . | . . . Electromagnetic 25 | . 23 2 Robot Hit Streak 9 | . 7 9 Robot Miss Streak 3 | . 3 2 Penetration Max . | . . . Secondary Targets 1 | . . 1 Max Gunslinging Chain 1 | . . 1 Shots Hit Robots 60 | . 16 44 Core Hits 27 | . 7 20 Critical Kills . | . . . Critical Parts Destroyed . | . . . Critical Strikes 1 | . . 1 Blast 1 | . . 1 Melee Attacks 4 | . . 4 Impact . | . . . Slashing . | . . . Piercing . | . . . Sneak Attacks . | . . . Combat Hostiles . | . . . Follow-up Attacks . | . . . Damage Inflicted 958 | . 211 747 Guns 556 | . 193 363 Cannons 400 | . 18 382 Explosions . | . . . Melee . | . . . Ramming 2 | . . 2 Kinetic 521 | . 18 503 Thermal 218 | . . 218 Explosive . | . . . Electromagnetic 217 | . 193 24 Impact . | . . . Slashing . | . . . Piercing . | . . . Highest Corruption 2 | . . 2 Average Corruption 1 | . . 1 Corruption Purged . | . . . Corruption Blocked . | . . . Effects 4 | . . 4 Message Errors 1 | . . 1 Matter Fused 2 | . . 2 Heat Flow Errors 1 | . . 1 Overload Shots . | . . . Overflow Damage 12 | . . 12 Projectiles 12 | . . 12 Explosions . | . . . Melee . | . . . Knockbacks 8 | . . 8 Impact . | . . . Kinetic 7 | . . 7 Secondary 1 | . . 1 Self-Inflicted Damage . | . . . Shots . | . . . Rammed . | . . . Targets Rammed 1 | . . 1 Kicked . | . . . Crushed 1 | . . 1 Highest Temperature 304 | . 128 304 Average Temperature 148 | . 61 175 Received Heat Transfer 930 | . 87 843 Effects 4 | . . 4 Energy Bleed 3 | . . 3 Interference 1 | . . 1 Siege Activations . | . . . Robots Corrupted . | . . . Combat Hostiles . | . . . Parts Fried 1 | . 1 . Impact Corruptions . | . . . Robots Melted . | . . . Combat Hostiles . | . . . Parts Melted . | . . . Heat Transferred 475 | . . 475 Parts Sabotaged . | . . . Parts Stolen . | . . . Parts Stripped . | . . . Power Chain Reactions . | . . . Missiles Intercepted . | . . . Alert | -11 -10 -9 ------- Run | Scr Mat Mat Peak Influence 234 | . 167 234 Initial 70 | . . 70 Average 88 | . 77 122 Maximum Alert Level 1 | . . 1 Low Security (%) 95 | 100 100 90 Level 1 4 | . . 9 Level 2 . | . . . Level 3 . | . . . Level 4 . | . . . Level 5 . | . . . High Security . | . . . Max Security . | . . . Squads Dispatched 1 | . 1 . Investigation . | . . . Extermination . | . . . Reinforcement 1 | . 1 . Assault . | . . . Garrison . | . . . Intercept . | . . . Searches Triggered . | . . . Construction Impeded . | . . . Haulers Reinforced . | . . . Active Scanning Responses . | . . . Cargo Convoy Interrupts . | . . . Stealth | -11 -10 -9 --------- Run | Scr Mat Mat Distress Signals 4 | . 2 2 Communications Jammed . | . . . Distress Signals . | . . . Times Spotted 21 | . 7 14 Peak Tracking Total 6 | . 5 6 Tactical Retreats 3 | . 2 1 Traps | -11 -10 -9 ------- Run | Scr Mat Mat Traps Triggered 2 | . . 2 Indirectly . | . . . Trap Hack Attempts . | . . . Triggered . | . . . Disarmed . | . . . Reprogrammed . | . . . Reused . | . . . Traps Extracted . | . . . Installed . | . . . Triggered . | . . . Machines | -11 -10 -9 ---------- Run | Scr Mat Mat Machines Disabled . | . . . Max in Single Turn . | . . . Machines Sabotaged . | . . . Garrisons Compromised . | . . . Overloaded Fab Kills . | . . . Hacking | -11 -10 -9 --------- Run | Scr Mat Mat Machines Accessed 2 | . 1 1 Terminals 2 | . 1 1 Fabricators . | . . . Repair Stations . | . . . Recycling Units . | . . . Scanalyzers . | . . . Garrison Access . | . . . Total Hacks 7 | . 3 4 Successful 6 | . 3 3 Failed 1 | . . 1 Catastrophic . | . . . Database Lockouts . | . . . Manual . | . . . Terminals 7 | . 3 4 Fabricators . | . . . Repair Stations . | . . . Recycling Units . | . . . Scanalyzers . | . . . Garrison Access . | . . . Terminal Hacks 6 | . 3 3 Record 3 | . 1 2 Alert Level 1 | . . 1 Locate Traps 1 | . 1 . Zone Layout 1 | . 1 . Fabricator Hacks . | . . . Repair Station Hacks . | . . . Recycling Unit Hacks . | . . . Scanalyzer . | . . . Garrison Access Hacks . | . . . Unauthorized Hacks . | . . . Terminals . | . . . Fabricators . | . . . Repair Stations . | . . . Recycling Units . | . . . Scanalyzers . | . . . Garrison Access . | . . . Data Cores Recovered . | . . . Used . | . . . Hacking Detections 2 | . 1 1 Full Trace Events 1 | . 1 . Feedback Events . | . . . Feedback Blocked . | . . . Robot Schematics Acquired . | . . . Robots Built . | . . . Authchips . | . . . Time . | . . . Total Robot Build Rating . | . . . Part Schematics Acquired . | . . . Parts Built . | . . . Authchips . | . . . Time . | . . . Total Part Build Rating . | . . . Parts Repaired . | . . . Time . | . . . Parts Recycled . | . . . Recycled Matter . | . . . Retrieved Matter . | . . . Retrieved Components . | . . . Parts Scanalyzed . | . . . Part Schematics Acquired . | . . . Parts Damaged . | . . . Bothacking | -11 -10 -9 ------------ Run | Scr Mat Mat Used RIF Installer . | . . . Robots Hacked 1 | . . 1 Non-combat . | . . . Combat 1 | . . 1 Robot Hacks Applied 1 | . . 1 parse_system 1 | . . 1 Relay Couplers Released . | . . . Fabnet Peak Effective % . | . . . Robots Rewired . | . . . Allies Hacked . | . . . Hacks Repelled . | . . . Allies | -11 -10 -9 -------- Run | Scr Mat Mat Total Allies . | . . . Largest Group . | . . . Highest-Rated Group . | . . . Highest-Rated Ally . | . . . Total Orders . | . . . Ally Attacks . | . . . Total Damage . | . . . Kills . | . . . Allies Corrupted . | . . . Allies Melted . | . . . Intel | -11 -10 -9 ------- Run | Scr Mat Mat Robot Analysis Total . | . . . Derelict Logs Recovered . | . . . Drone Launches . | . . . Drone Recoveries . | . . . Exploration | -11 -10 -9 ------------- Run | Scr Mat Mat Turns Passed 736 | 91 313 332 Spaces Moved 339 | 56 168 115 Core 34 | 11 . 23 Treads 305 | 45 168 92 Legs . | . . . Wheels . | . . . Hover . | . . . Flight . | . . . Fastest Speed 50 | 50 160 50 Average Speed 156 | 138 160 160 Slowest Speed 200 | 160 160 200 Overloaded Moves . | . . . Propulsion Burnouts . | . . . Robots Hopped . | . . . Cave-ins Triggered . | . . . Exploration Rate (%) 17 | 4 32 17 Regions Visited 2 Branch Regions . Pre-discovered Areas . | . . . Known Exits Taken . | . . . Unknown Exits Taken 2 | 1 1 . Scrap Searched . | . . . Spaces Dug . | . . . Terrain Destroyed . | . . . Melee . | . . . Projectile . | . . . AOE . | . . . Terrain Rammed . | . . . Walls Destroyed . | . . . Machines Disabled . | . . . Actions | -11 -10 -9 --------- Run | Scr Mat Mat Total 451 | 70 189 192 Wait 6 | . 4 2 Move 337 | 55 167 115 Hop . | . . . Pick Up 21 | 9 2 10 Fast Attach . | . . . Attach 20 | 6 2 12 Detach 3 | . 1 2 Swap 2 | . . 2 Drop . | . . . Fire 57 | . 13 44 Melee 4 | . . 4 Ram . | . . . Kick . | . . . Crush 1 | . . 1 Escape Stasis . | . . . Rewire . | . . . Trap . | . . . Miscellaneous . | . . . Route ------- -11/Scrapyard -10/Materials -9/Materials History --------- Turn | Location | Event 6 | -11/Scrapyard | Discovered new exit (range 16) 92 | -11/Scrapyard | Entered Materials 228 | -10/Materials | Discovered new exit (range 16) 317 | -10/Materials | Build established: Mutant 405 | -10/Materials | Entered another Materials area 405 | -9/Materials | Evolved 2 slots: Propulsion x2 638 | -9/Materials | Core integrity fell below 50% 661 | -9/Materials | Core integrity fell below 20% 673 | -9/Materials | Lost 8 parts (1p4n1u2w) 737 | -9/Materials | Destroyed by G-34 Mercenary with Small Laser Last Messages --------------- 00699_ W-16 Scout destroyed. 00699_ R-06 Scavenger collects Lgt. Ion Engine. 00703_ Acquired 30 matter. 00706_ Q8FVJD|/Q >M2M 00721_ L-31 Rogue destroyed. 00723_ System corrupted: Heat flow error (+153). 00723_ R-06 Scavenger inserts Lgt. Ion Engine into recycling unit. 00727_ Sml. Storage Unit destroyed. 00727_ Y-45 Defender destroyed. 00727_ R-06 Scavenger collects Katana. 00731_ Acquired Beam Rifle. 00731_ K-01 Serf collects debris. 00733_ Acquired 10 matter. 00734_ K-01 Serf collects debris. 00735_ Acquired Lgt. Armor Plating. 00735_ R-06 Scavenger collects Imp. Aluminum Leg. Map ----- +----------------------------------------------------+ | ?????????????????????????????????????????????????? | | ?????????????????????????????????????????????????? | | ?????????????????????????????????????????????????? | | ?????????????????????????????????????????????????? | | ?????????????????????????????????????????????????? | | ?????????????????????????????????????????????????? | | ?????????????????????????????????????????????????? | | ?????????????????????????????????????????????????? | | ?????????????????????????????????????????????????? | | ?????????????????????????????????????????????????? | | ???????????????????????? ??????????????????????? | | ???????????????????????? ??????????????????????? | | ???????????????????????# ??????????????????????? | | ???????????????????????# #?????????????????????? | | ???????????????????????# #?????????????????????? | | ???????????????????????# #?????????????????????? | | ???????????????????????# #?????????????????????? | | ???????????????????????# #?????????????????????? | | ???????????????????????# #?????????????????????? | | ???????????????????????# #?????????????????????? | | ???????????????????????# #?????????????????????? | | ???????????????????????# #############?????????? | | ???????????????######### # ?????????? | | ???????????????# # #"" ??????????? | | ???????????????#""" # #"Y """"???????????? | | ???????????????#""" # @%#"" """"???????????? | | ???????????????#""" = # %r gk """"???????????? | | ???????????????#%%= = # k #####/####????????????? | | ?????????????######+#### #?????????????????????? | | ????# ######## * % #####?????????????????? | | ????+ %%% % * ! / ??????????? | | ???????#######% % % ! ! ##### #???????????????? | | ?????????????# !!#######+###?????????????????????? | | ?????????????# !%#???????????????????????????????? | | ?????????????# =#???????????????????????????????? | | ?????????????# #???????????????????????????????? | | ????#????????# #??????""???????????????????????? | | ????# ??????# #?????"""???????????????????????? | | ????# !!!????# ##### """ #?????????????????????? | | ##### =! ??# ^ ^ + #?????????????????????? | | # !! # ## !#?????????????????????? | | # + #????????????????????????????? | | # # #????????????????????????????? | | # ??# #????????????????????????????? | | """ ########## #????????????????????????????? | | """ + #????????????????????????????? | | """ ########## ####????????????????????????????? | | #????????# #???????????????????????????????? | | +############# #???????????????????????????????? | | #???????????????????????????????? | +----------------------------------------------------+ Best States ------------- Heat Dissipation 28 Energy Generation 14 Energy Capacity 160 Matter Stores 300 Matter Capacity 300 Sight Range 16 Terrain Scan Density 10 Armor Coverage 150 Evasion (%) 50 Recoil Reduction 2 Item Schematics ----------------- None Robot Schematics ------------------ None Fabricated ------------ Nothing Alien Tech Used ----------------- None Achievements -------------- None Challenges ------------ None Game ------ Seed HeatSpectralSystem Manual? 0 Play Time 00:16:14 Cumulative 3.0 hours Start 2022.12.17 @ 21:21:12 End 2022.12.17 @ 21:35:50 Sessions 1 Manual Loads 0 Difficulty Rogue Special Mode None Game No. 6 Rogue 6 Adventurer 0 Explorer 0 Win Type - Total 0 Types 0/0/0/0/0/0/0/0/0 Lore% 4 Gallery% 5 Achievement% 8 Wizard Run 0 Options --------- ASCII 0 Keyboard 0 Movement Mouse Keybinds 0 Fullscreen 1 Font 24/Smallcaps Map View 76x50 Tactical HUD 1 Map Filters NONE Filters NONE Steam 1 RUN: 6a18c4c9-a821-421d-9687-67e2527bf082